bitfinex/quotes_BTCUSD_20251219
["timestamp","ask_amount","ask_price","bid_price","bid_amount"]
[1766170065448,0.03090646,87094.0,87051.0,0.01]
[1766170065449,0.30988,87092.0,87078.0,0.02294538]
[1766170065652,0.64432,87091.0,87078.0,0.02870538]
[1766170065894,0.01308349,87094.0,87078.0,0.02870538]
[1766170065895,0.32136237,87090.0,87078.0,0.02870538]
[1766170066131,0.01308349,87094.0,87068.0,0.30969]
[1766170066132,0.01148316,87084.0,87068.0,0.30969]
[1766170066349,0.30988,87068.0,87059.0,0.00576]
[1766170066565,0.64432,87067.0,87059.0,0.00576]
[1766170066796,0.00576,87075.0,87059.0,0.00576]
[1766170067001,0.00576,87075.0,87050.0,0.00576]
[1766170067002,0.33444,87064.0,87050.0,0.00576]
[1766170067242,0.33444,87064.0,87052.0,0.01148738]
[1766170067382,0.33444,87064.0,87050.0,0.00576]
[1766170067590,0.30988,87063.0,87050.0,0.00576]
[1766170068024,0.30988,87063.0,87051.0,0.05743759]
[1766170068215,0.30988,87063.0,87050.0,0.00576]
[1766170068477,0.30988,87063.0,87050.0,0.01724765]
[1766170068639,0.30988,87063.0,87050.0,0.00576]
[1766170069051,0.30988,87063.0,87050.0,0.01724765]
[1766170069557,0.30988,87063.0,87050.0,0.00576]
[1766170069739,0.32136593,87063.0,87050.0,0.00576]
[1766170069940,0.30988,87063.0,87050.0,0.00576]
[1766170071253,0.30988,87063.0,87057.0,0.02294538]
[1766170071454,0.33444,87064.0,87057.0,0.02294538]
[1766170072033,0.01148474,87072.0,87057.0,0.02294538]
[1766170072228,0.06054223,87072.0,87057.0,0.02294538]
[1766170072435,0.00010852,87072.0,87058.0,0.01148659]
[1766170072657,0.00010852,87072.0,87057.0,0.02294538]
[1766170072856,0.00010852,87072.0,87057.0,0.09186559]
[1766170073065,0.00010852,87072.0,87057.0,0.02294538]
[1766170073281,0.06890932,87071.0,87057.0,0.02294538]
[1766170073505,0.01148501,87070.0,87057.0,0.02294538]
[1766170073653,0.01159326,87072.0,87057.0,0.02294538]
[1766170073654,0.00010852,87072.0,87057.0,0.02294538]
[1766170073864,0.01159326,87072.0,87058.0,0.64486]
[1766170074266,0.01159326,87072.0,87057.0,0.02294538]
[1766170074267,0.00010852,87072.0,87059.0,0.64486]
[1766170074466,0.00010852,87072.0,87059.0,0.65634646]
[1766170074673,0.00010852,87072.0,87059.0,0.71377874]
[1766170075004,0.00010852,87072.0,87059.0,0.65634646]
[1766170075241,0.00010852,87072.0,87062.0,0.01148606]
[1766170075443,0.00010852,87072.0,87071.0,0.02294538]
[1766170076582,0.00010852,87072.0,87071.0,0.02184638]
[1766170077153,0.0689024,87080.0,87072.0,0.000108]
[1766170077355,0.01148303,87085.0,87071.0,0.02184638]
[1766170077557,0.00576,87086.0,87074.0,0.05742242]
[1766170077558,0.65008,87086.0,87074.0,0.05742242]
[1766170077757,0.65008,87086.0,87075.0,0.01724435]
[1766170077947,0.65008,87086.0,87075.0,0.00576]
[1766170078346,0.39185473,87086.0,87075.0,0.00576]
[1766170078530,0.01148303,87085.0,87075.0,0.00576]
[1766170078725,0.05741772,87082.0,87075.0,0.00576]
[1766170078943,0.01148356,87081.0,87075.0,0.00576]
[1766170079225,0.01148369,87080.0,87075.0,0.00576]
[1766170079473,0.0689015,87081.0,87075.0,0.00576]
[1766170079718,0.01148342,87082.0,87075.0,0.00576]
[1766170079923,0.01148329,87083.0,87075.0,0.00576]
[1766170080139,0.33444,87086.0,87076.0,0.01148422]
[1766170080322,0.03449983,87108.0,87075.0,0.00576]
[1766170080323,0.00576,87094.0,87083.0,0.001099]
[1766170080549,0.32136277,87087.0,87083.0,0.001099]
[1766170080731,0.30988,87085.0,87081.0,0.00576]
[1766170080878,0.40333646,87088.0,87081.0,0.00576]
[1766170080879,0.33444,87088.0,87081.0,0.00576]
[1766170081082,0.33444,87099.0,87082.0,0.30969]
[1766170081398,0.33444,87099.0,87081.0,0.00576]
[1766170081399,0.33444,87093.0,87081.0,0.00576]
[1766170081729,0.0001085,87094.0,87083.0,0.30969]
[1766170081938,0.0001085,87094.0,87089.0,0.02294538]
[1766170082086,0.33444,87102.0,87089.0,0.02294538]
[1766170082087,0.33444,87102.0,87091.0,0.01148224]
[1766170082306,0.00576,87105.0,87092.0,0.30969]
[1766170082517,0.00576,87105.0,87083.0,0.01148329]
[1766170082518,0.001099,87092.0,87083.0,0.01148329]
[1766170082746,0.001099,87092.0,87089.0,0.02294538]
[1766170082943,0.64432,87100.0,87090.0,0.00576]
[1766170083164,0.31564,87105.0,87090.0,0.07465417]
[1766170083350,0.31564,87105.0,87091.0,0.64486]
[1766170083351,0.01148079,87102.0,87091.0,0.64486]
[1766170083590,0.001099,87091.0,87090.0,0.00576]
[1766170083760,0.001099,87091.0,87070.0,0.01148501]
[1766170083761,0.33444,87085.0,87070.0,0.01148501]
[1766170083963,0.001099,87091.0,87071.0,0.02870538]
[1766170083964,0.01258124,87091.0,87071.0,0.02870538]
[1766170084165,0.32444,87090.0,87074.0,0.05742177]
[1766170084342,0.32444,87090.0,87077.0,0.01148408]
[1766170084684,0.32444,87097.0,87083.0,0.01148329]
[1766170084921,0.32454848,87097.0,87085.0,0.02294538]
[1766170085123,0.00010848,87097.0,87085.0,0.02294538]
[1766170085753,0.01148131,87098.0,87086.0,0.34434]
[1766170085966,0.01148131,87098.0,87087.0,0.32507]
[1766170086209,0.01148131,87098.0,87086.0,0.34444848]
[1766170086210,0.01148105,87100.0,87086.0,0.34444848]
[1766170086428,0.06888712,87099.0,87086.0,0.34444848]
[1766170087037,0.66792105,87100.0,87086.0,0.34444848]
[1766170087038,0.72532634,87100.0,87086.0,0.34444848]
[1766170087220,0.01148118,87099.0,87086.0,0.34444848]
[1766170087778,0.00576,87105.0,87094.0,0.01148184]
[1766170087984,0.00576,87105.0,87086.0,0.34444848]
[1766170087985,0.332,87120.0,87104.0,0.01148052]
[1766170088189,0.332,87120.0,87103.0,0.02294538]
[1766170088190,0.332,87118.0,87103.0,0.02870538]
[1766170088399,0.65644,87118.0,87103.0,0.02870538]
[1766170088610,0.332,87124.0,87108.0,0.80463438]
[1766170088815,0.332,87124.0,87109.0,0.33083]
[1766170088964,0.01147842,87120.0,87109.0,0.33083]
[1766170089165,0.05739012,87123.0,87109.0,0.33083]
[1766170089386,0.01147802,87123.0,87109.0,0.33083]
[1766170089585,0.01147815,87122.0,87109.0,0.33083]
[1766170089994,0.40086758,87124.0,87109.0,0.33083]
[1766170089995,0.34347789,87124.0,87109.0,0.33083]
[1766170090199,0.34347789,87124.0,87110.0,0.79315438]
[1766170090466,0.22954718,87129.0,87110.0,0.79315438]
[1766170090467,0.01307365,87127.0,87117.0,0.02294538]
[1766170090648,0.00159616,87127.0,87118.0,0.02870538]
[1766170091592,0.00159616,87127.0,87118.0,0.00576]
[1766170091593,0.01307365,87127.0,87118.0,0.00576]
[1766170091706,0.01318213,87127.0,87118.0,0.00576]
[1766170091906,0.00170464,87127.0,87118.0,0.00576]
[1766170092127,0.01147776,87125.0,87118.0,0.00576]
[1766170092352,0.01147802,87123.0,87118.0,0.00576]
[1766170092801,0.06886825,87123.0,87118.0,0.00576]
[1766170093014,0.01147802,87123.0,87118.0,0.00576]
[1766170093482,0.01147789,87124.0,87118.0,0.00576]
[1766170093705,0.01147802,87123.0,87118.0,0.00576]
[1766170093906,0.01147802,87123.0,87119.0,0.00576]
[1766170094078,0.06886754,87124.0,87119.0,0.00576]
[1766170094079,0.01147789,87124.0,87119.0,0.00576]
[1766170094279,0.39109243,87127.0,87119.0,0.00576]
[1766170094280,0.01147763,87126.0,87119.0,0.00576]
[1766170094513,0.01147802,87123.0,87119.0,0.00576]
[1766170094683,0.06886612,87126.0,87119.0,0.00576]
[1766170095014,0.00170464,87127.0,87119.0,0.00576]
[1766170095381,0.01147776,87125.0,87119.0,0.00576]
[1766170095590,0.06887092,87120.0,87111.0,0.32507]
[1766170095767,0.01147842,87120.0,87112.0,0.00576]
[1766170095971,0.01147868,87118.0,87108.0,0.34434]
[1766170096172,0.01147921,87114.0,87105.0,0.01]
[1766170096372,0.01147921,87114.0,87093.0,0.01148197]
[1766170096373,0.6679196,87111.0,87092.0,0.04596]
[1766170096575,0.01148013,87107.0,87100.0,0.02294538]
[1766170096775,0.01147987,87109.0,87101.0,0.00576]
[1766170097305,0.65644,87110.0,87101.0,0.00576]
[1766170097513,0.32444,87117.0,87101.0,0.00576]
[1766170097718,0.01147907,87115.0,87101.0,0.00576]
[1766170098045,0.01147921,87114.0,87101.0,0.00576]
[1766170098240,0.01147934,87113.0,87101.0,0.00576]
[1766170098658,0.06887567,87114.0,87101.0,0.00576]
[1766170098927,0.01147934,87113.0,87101.0,0.00576]
[1766170099330,0.06887567,87114.0,87101.0,0.00576]
[1766170099727,0.01147921,87114.0,87101.0,0.32828]
[1766170099929,0.01147921,87114.0,87101.0,0.00576]
[1766170099930,0.01147973,87110.0,87101.0,0.00576]
[1766170100157,0.03294538,87129.0,87101.0,0.01724092]
[1766170100378,0.64717,87124.0,87109.0,0.02294538]
[1766170100584,0.64717,87124.0,87110.0,0.00576]
[1766170100585,0.06886894,87122.0,87110.0,0.00576]
[1766170100787,0.64717,87124.0,87110.0,0.00576]
[1766170100948,0.06886666,87125.0,87109.0,0.02294538]
[1766170100949,0.06886959,87122.0,87109.0,0.02294538]
[1766170101153,0.06886959,87122.0,87098.0,0.05740635]
[1766170101154,0.01147842,87120.0,87101.0,0.06888541]
[1766170101351,0.64717,87118.0,87109.0,0.02294538]
[1766170101570,0.64717,87118.0,87109.0,0.02870538]
[1766170104780,0.00576,87123.0,87110.0,0.01147973]
[1766170105000,0.00576,87123.0,87110.0,0.06887804]
[1766170105410,0.00576,87123.0,87109.0,0.02870538]
[1766170105411,0.01147828,87121.0,87109.0,0.02870538]
[1766170105728,0.64717,87122.0,87109.0,0.02870538]
[1766170106182,0.33663,87115.0,87109.0,0.00576]
[1766170106339,0.64717,87115.0,87110.0,0.00576]
[1766170106550,0.01147828,87121.0,87111.0,0.00576]
[1766170106757,0.01147868,87118.0,87111.0,0.00576]
[1766170107082,0.06887555,87114.0,87102.0,0.24987]
[1766170107284,0.01147921,87114.0,87103.0,0.00576]
[1766170107459,0.01147907,87115.0,87097.0,0.02148145]
[1766170107848,0.01147881,87117.0,87105.0,0.0574016]
[1766170107849,0.64717,87117.0,87105.0,0.0574016]
[1766170107978,0.64717,87117.0,87101.0,0.01]
[1766170108179,0.64717,87117.0,87105.0,0.00576]
[1766170108405,0.64717,87114.0,87105.0,0.00576]
[1766170109953,0.33663,87114.0,87105.0,0.00576]
[1766170110101,0.00576,87118.0,87114.0,0.001099]
[1766170110299,0.31054,87120.0,87114.0,0.001099]
[1766170110505,0.31054,87120.0,87109.0,0.02294538]
[1766170110506,0.64717,87121.0,87109.0,0.02294538]
[1766170110703,0.01723815,87122.0,87109.0,0.02294538]
[1766170110905,0.64717,87121.0,87109.0,0.02294538]
[1766170111528,0.00576,87122.0,87111.0,0.0114796]
[1766170111739,0.06906245,87131.0,87114.0,0.01147921]
[1766170112103,0.33683,87128.0,87114.0,0.01147921]
[1766170112238,0.64887464,87127.0,87114.0,0.01147921]
[1766170112444,0.64887464,87127.0,87112.0,0.01723947]
[1766170112629,0.00170464,87127.0,87112.0,0.00576]
[1766170112826,0.64717,87126.0,87112.0,0.01723947]
[1766170113680,0.00170464,87127.0,87114.0,0.2537]
[1766170114005,0.00170464,87127.0,87114.0,0.26517921]
[1766170114230,0.00170464,87127.0,87112.0,0.00576]
[1766170114231,0.68792815,87122.0,87112.0,0.00576]
[1766170114378,0.01147973,87110.0,87099.0,0.01]
[1766170114583,0.33692013,87107.0,87092.0,0.02294538]
[1766170114808,0.33692013,87107.0,87095.0,0.01148171]
[1766170114809,0.26794473,87105.0,87095.0,0.01148171]
[1766170115009,0.26794473,87105.0,87093.0,0.01724197]
[1766170115181,0.26794473,87105.0,87094.0,0.01148184]
[1766170115389,0.26794473,87105.0,87093.0,0.00576]
[1766170115390,0.26794473,87105.0,87093.0,0.07465176]
[1766170115585,0.26794473,87105.0,87093.0,0.00576]
[1766170116435,0.26794473,87105.0,87093.0,0.07465171]
[1766170116595,0.26794473,87105.0,87093.0,0.00576]
[1766170118042,0.26794473,87105.0,87093.0,0.01724197]
[1766170118187,0.10062932,87105.0,87093.0,0.01724197]
[1766170118391,0.35101,87107.0,87094.0,0.01148184]
[1766170118793,0.35101,87107.0,87093.0,0.07465183]
[1766170119029,0.35101,87107.0,87094.0,0.01148184]
[1766170119240,0.35101,87107.0,87094.0,0.06889107]
[1766170119434,0.35101,87107.0,87095.0,0.01148171]
[1766170119748,0.35101,87107.0,87098.0,0.01148131]
[1766170119951,0.00576,87113.0,87099.0,0.00576]
[1766170120113,0.35677,87113.0,87099.0,0.00576]
[1766170120711,0.35677,87113.0,87106.0,0.02294538]
[1766170120922,0.0002,87128.0,87114.0,0.58574]
[1766170121136,0.0002,87128.0,87115.0,0.00576]
[1766170121137,0.35101,87125.0,87115.0,0.00576]
[1766170121878,0.06886735,87124.0,87115.0,0.00576]
[1766170122200,0.01147802,87123.0,87115.0,0.00576]
[1766170122373,0.01147815,87122.0,87115.0,0.00576]
[1766170123013,0.06886862,87123.0,87115.0,0.00576]
[1766170123429,0.01147789,87124.0,87115.0,0.00576]
[1766170123709,0.01147802,87123.0,87115.0,0.00576]
[1766170123887,0.06886819,87123.0,87115.0,0.00576]
[1766170124269,0.01147815,87122.0,87115.0,0.00576]
[1766170124473,0.05739022,87123.0,87115.0,0.00576]
[1766170124677,0.01147815,87122.0,87115.0,0.004661]
[1766170124903,0.01147828,87121.0,87115.0,0.004661]
[1766170125255,0.01147815,87122.0,87115.0,0.004661]
[1766170125462,0.33691789,87124.0,87115.0,0.004661]
[1766170126107,0.41987679,87125.0,87115.0,0.004661]
[1766170126108,0.01147776,87125.0,87115.0,0.004661]
[1766170126278,0.01147789,87124.0,87115.0,0.004661]
[1766170126596,0.01147776,87125.0,87115.0,0.004661]
[1766170126784,0.01147789,87124.0,87115.0,0.004661]
[1766170127798,0.0688668,87125.0,87115.0,0.004661]
[1766170128371,0.36248776,87125.0,87115.0,0.004661]
[1766170129860,0.35101,87123.0,87115.0,0.004661]
[1766170129982,0.68792815,87122.0,87115.0,0.004661]
[1766170130180,0.67645,87122.0,87115.0,0.004661]
[1766170130404,0.68792815,87122.0,87107.0,0.25779]
[1766170130600,0.09308566,87122.0,87108.0,0.00576]
[1766170130853,0.06886774,87124.0,87108.0,0.00576]
[1766170131087,0.06886774,87124.0,87110.0,0.79254808]
[1766170131088,0.35101,87121.0,87110.0,0.79254808]
[1766170131319,0.67645,87121.0,87110.0,0.79254808]
[1766170133064,0.01147763,87126.0,87120.0,0.02294538]
[1766170133589,0.07056975,87127.0,87120.0,0.02294538]
[1766170133864,0.01147776,87125.0,87120.0,0.02294538]
[1766170134383,0.35101,87122.0,87116.0,0.00576]
[1766170135165,0.00170464,87127.0,87116.0,0.00576]
[1766170136012,0.00060564,87127.0,87120.0,0.02294538]
[1766170136752,0.00576,87134.0,87120.0,0.02294538]
[1766170136753,0.0002,87138.0,87127.0,0.01147749]
[1766170136962,0.0002,87138.0,87126.0,0.32583]
[1766170136963,0.0002,87138.0,87128.0,0.79830808]
[1766170137706,0.0002,87138.0,87128.0,0.00576]
[1766170138125,0.0002,87138.0,87128.0,0.79830808]
[1766170138680,0.35121,87138.0,87128.0,0.79830808]
[1766170139614,0.01167473,87148.0,87128.0,0.79830808]
[1766170139615,0.35121,87148.0,87136.0,0.34877538]
[1766170139832,0.0002,87148.0,87138.0,1.11837808]
[1766170140033,0.0002,87152.0,87140.0,0.32583]
[1766170140368,0.0002,87152.0,87144.0,0.32583]
[1766170140501,0.0002,87152.0,87144.0,0.00576]
[1766170140502,0.06884972,87147.0,87144.0,0.00576]
[1766170140716,0.06884928,87147.0,87144.0,1e-06]
[1766170140945,0.057375,87146.0,87144.0,1e-06]
[1766170141100,0.06884928,87147.0,87144.0,1e-06]
[1766170141307,0.05737552,87146.0,87144.0,1e-06]
[1766170141504,0.06884934,87147.0,87144.0,1e-06]
[1766170141733,0.01147486,87147.0,87144.0,1e-06]
[1766170142138,0.35101,87137.0,87124.0,0.05596]
[1766170142361,0.35101,87137.0,87130.0,0.79254808]
[1766170142556,1.75e-06,87135.0,87134.0,0.02294538]
[1766170142760,0.01147473,87148.0,87137.0,0.00109725]
[1766170143008,0.3371142,87152.0,87138.0,0.00576]
[1766170143009,0.01147539,87143.0,87138.0,0.00576]
[1766170143188,0.35101,87144.0,87138.0,0.00576]
[1766170143394,0.01172724,87143.0,87124.0,0.26715]
[1766170143561,0.01147604,87138.0,87126.0,0.01]
[1766170143759,0.01147591,87139.0,87127.0,0.00576]
[1766170144047,0.01147552,87142.0,87127.0,0.33159]
[1766170144237,0.00025185,87143.0,87127.0,0.33159]
[1766170144238,0.01172724,87143.0,87127.0,0.33159]
[1766170144457,0.00025185,87143.0,87127.0,0.33159]
[1766170144666,0.01147565,87141.0,87127.0,0.33159]
[1766170144806,0.26508683,87144.0,87127.0,0.33159]
[1766170145003,0.26508683,87144.0,87134.0,0.02294538]
[1766170145208,0.0172346,87149.0,87135.0,0.00576]
[1766170145417,0.01147473,87148.0,87135.0,0.00576]
[1766170145608,0.01147539,87143.0,87136.0,0.02294538]
[1766170146192,0.01147539,87143.0,87135.0,0.00576]
[1766170146317,0.05737765,87142.0,87135.0,0.00576]
[1766170146526,0.01147565,87141.0,87135.0,0.00576]
[1766170146859,0.31907,87139.0,87135.0,0.00576]
[1766170147062,0.33054591,87139.0,87135.0,0.00576]
[1766170147238,0.01147604,87138.0,87135.0,0.00576]
[1766170147445,0.01147591,87139.0,87135.0,0.00576]
[1766170147829,0.06885407,87141.0,87135.0,0.00576]
[1766170148042,0.34725,87142.0,87136.0,0.02294538]
[1766170148469,0.35301,87149.0,87136.0,0.33981538]
[1766170148644,0.35301,87149.0,87142.0,0.001097]
[1766170149034,0.3644846,87149.0,87142.0,0.001097]
[1766170149310,0.06885104,87145.0,87136.0,0.02294538]
[1766170149432,0.34725,87146.0,87136.0,0.02294538]
[1766170149870,0.00576,87149.0,87136.0,0.33981538]
[1766170150077,0.0002,87152.0,87136.0,0.33981538]
[1766170150078,0.06884733,87150.0,87146.0,0.001097]
[1766170150279,0.06884681,87150.0,87137.0,0.31722]
[1766170150484,0.0002,87152.0,87142.0,0.31687]
[1766170150818,0.0002,87152.0,87150.0,0.02294538]
[1766170152377,0.01147381,87155.0,87150.0,0.02294538]
[1766170152623,0.00036151,87155.0,87150.0,0.02294538]
[1766170152876,0.06920462,87155.0,87150.0,0.02294538]
[1766170153079,0.00036151,87155.0,87150.0,0.02294538]
[1766170153249,0.01147394,87154.0,87150.0,0.02294538]
[1766170153548,0.00036151,87155.0,87150.0,0.02294538]
[1766170154311,0.01183532,87155.0,87150.0,0.02294538]
[1766170154536,0.00036151,87155.0,87150.0,0.02294538]
[1766170155632,0.00025233,87155.0,87150.0,0.02294538]
[1766170155828,0.00025233,87155.0,87150.0,0.02870538]
[1766170156033,2.33e-06,87155.0,87151.0,0.66202]
[1766170156475,2.33e-06,87155.0,87153.0,0.35363]
[1766170156633,0.01147262,87164.0,87154.0,0.30839]
[1766170156834,0.01147288,87162.0,87154.0,0.30839]
[1766170157659,0.00010841,87164.0,87154.0,0.30839]
[1766170157865,0.05747161,87164.0,87154.0,0.30839]
[1766170158262,0.06883665,87163.0,87154.0,0.30839]
[1766170158734,0.06894423,87164.0,87154.0,0.30839]
[1766170158963,0.00010841,87164.0,87155.0,0.30839]
[1766170159155,0.00010841,87164.0,87157.0,0.30839]
[1766170159402,0.00010841,87164.0,87157.0,0.66102]
[1766170159615,0.00010841,87164.0,87147.0,0.01147486]
[1766170159616,0.33458604,87138.0,87121.0,0.06162426]
[1766170159801,0.06886237,87131.0,87122.0,0.00576]
[1766170159951,0.0114767,87133.0,87122.0,0.00576]
[1766170159952,0.05738683,87128.0,87122.0,0.00576]
[1766170160151,0.01147749,87127.0,87122.0,0.00576]
[1766170160391,0.01147749,87127.0,87114.0,0.30839]
[1766170160702,0.05738815,87126.0,87115.0,0.01]
[1766170160912,0.01147763,87126.0,87115.0,0.01]
[1766170161061,0.01147776,87125.0,87115.0,0.01]
[1766170161263,0.42344473,87126.0,87115.0,0.01]
[1766170161264,0.36605636,87126.0,87115.0,0.01]
[1766170161468,0.01147881,87117.0,87113.0,0.00576]
[1766170161668,0.01147815,87122.0,87113.0,0.00576]
[1766170161669,0.01147842,87120.0,87113.0,0.00576]
[1766170162171,0.01147855,87119.0,87113.0,0.00576]
[1766170162983,0.01147842,87120.0,87113.0,0.00576]
[1766170163197,0.36597828,87121.0,87113.0,0.00576]
[1766170163610,0.3545,87121.0,87113.0,0.00576]
[1766170164026,0.01147842,87120.0,87113.0,0.00576]
[1766170164231,0.36597828,87121.0,87113.0,0.00576]
[1766170164449,0.01147842,87120.0,87113.0,0.00576]
[1766170164799,0.01147868,87118.0,87113.0,0.00576]
[1766170165031,0.01147855,87119.0,87113.0,0.00576]
[1766170165232,0.01147842,87120.0,87113.0,0.00576]
[1766170165450,0.4233701,87121.0,87113.0,0.00576]
[1766170165633,0.3545,87121.0,87113.0,0.00576]
[1766170165835,0.41189208,87121.0,87113.0,0.00576]
[1766170166051,0.3545,87121.0,87113.0,0.00576]
[1766170166273,0.353,87131.0,87121.0,0.000736]
[1766170166453,0.35876,87131.0,87121.0,0.000736]
[1766170166640,0.35307873,87126.0,87120.0,0.02294538]
[1766170167298,0.00576,87131.0,87126.0,0.00065727]
[1766170167500,0.353,87130.0,87126.0,0.00101878]
[1766170167715,0.353,87128.0,87126.0,0.00036151]
[1766170167892,0.353,87128.0,87107.0,0.05740041]
[1766170167893,0.31164,87127.0,87109.0,0.01]
[1766170168101,0.353,87119.0,87110.0,0.00576]
[1766170168316,0.353,87119.0,87109.0,0.01010848]
[1766170168317,0.353,87119.0,87109.0,0.00010848]
[1766170168521,0.353,87119.0,87098.0,0.01148131]
[1766170168522,0.42187541,87114.0,87110.0,0.00576]
[1766170168681,0.000441,87110.0,87100.0,0.04596]
[1766170168883,0.35307877,87110.0,87101.0,0.00576]
[1766170169314,7.877e-05,87110.0,87101.0,0.00576]
[1766170169902,0.353,87126.0,87112.0,0.01147947]
[1766170170121,0.42186583,87126.0,87115.0,0.02294538]
[1766170170336,0.42186583,87126.0,87114.0,0.31576]
[1766170170337,0.353,87126.0,87114.0,0.31576]
[1766170170786,0.353,87126.0,87113.0,0.00576]
[1766170170787,0.01147776,87125.0,87113.0,0.00576]
[1766170171217,0.353,87126.0,87113.0,0.32152]
[1766170172471,0.353,87126.0,87113.0,0.00576]
[1766170172678,0.353,87126.0,87114.0,0.31576]
[1766170174067,0.353,87126.0,87114.0,0.32723921]
[1766170174272,0.353,87126.0,87113.0,0.00576]
[1766170174273,0.000441,87114.0,87113.0,0.00576]
[1766170174661,0.30652,87117.0,87113.0,0.00576]
[1766170175460,0.30652,87117.0,87113.0,0.005319]
[1766170176597,0.30652,87117.0,87099.0,0.06888657]
[1766170176598,0.01147947,87112.0,87092.0,0.01148211]
[1766170176748,0.63276987,87109.0,87095.0,0.04596]
[1766170176956,0.31477,87109.0,87093.0,0.01]
[1766170177161,0.01148,87108.0,87097.0,0.02294538]
[1766170177578,0.69016922,87109.0,87097.0,0.02294538]
[1766170177772,0.62129,87109.0,87097.0,0.02294538]
[1766170178357,0.30652,87108.0,87097.0,0.02294538]
[1766170178567,0.30652,87108.0,87095.0,0.01]
[1766170178974,0.30652,87108.0,87097.0,0.02294538]
[1766170179181,0.01147921,87114.0,87108.0,0.001099]
[1766170179387,0.09035009,87115.0,87106.0,0.00576]
[1766170179625,0.00576,87119.0,87106.0,0.00576]
[1766170179827,0.03448872,87135.0,87106.0,0.00576]
[1766170179828,0.31477,87134.0,87115.0,0.05739478]
[1766170180024,0.31477,87133.0,87116.0,0.01723894]
[1766170180270,0.31477,87133.0,87119.0,0.06887122]
[1766170180478,0.31477,87133.0,87117.0,0.31243]
[1766170180479,0.3262467,87133.0,87117.0,0.31243]
[1766170180634,0.05738551,87130.0,87117.0,0.31243]
[1766170180838,0.05738551,87130.0,87116.0,0.00576]
[1766170180839,0.31477,87130.0,87116.0,0.00576]
[1766170181062,0.01147736,87128.0,87116.0,0.00576]
[1766170181266,0.3262471,87130.0,87116.0,0.00576]
[1766170181465,0.01147736,87128.0,87116.0,0.00576]
[1766170181814,0.30652,87128.0,87116.0,0.00576]
[1766170184045,0.31477,87128.0,87112.0,0.13935]
[1766170184201,0.31477,87128.0,87108.0,0.31243]
[1766170184202,0.62129,87127.0,87113.0,0.00576]
[1766170184404,0.31799763,87126.0,87113.0,0.00576]
[1766170184609,0.30652,87126.0,87113.0,0.00576]
[1766170185260,0.30652,87125.0,87113.0,0.00576]
[1766170185927,0.06886318,87130.0,87125.0,0.001099]
[1766170186130,0.0114771,87130.0,87122.0,0.00576]
[1766170186380,0.06886318,87130.0,87122.0,0.00576]
[1766170186594,0.01147723,87129.0,87122.0,0.00576]
[1766170186947,0.06886353,87129.0,87122.0,0.00576]
[1766170187694,0.31477,87129.0,87121.0,0.00576]
[1766170187887,0.30652,87128.0,87121.0,0.00576]
[1766170188049,0.01147749,87127.0,87121.0,0.00576]
[1766170188249,0.30652,87128.0,87121.0,0.00576]
[1766170188455,0.37538465,87128.0,87121.0,0.00576]
[1766170188653,0.37038465,87128.0,87121.0,0.00576]
[1766170188853,0.01147776,87125.0,87122.0,0.00576]
[1766170189155,0.31477,87124.0,87122.0,0.00576]
[1766170190049,0.31477,87124.0,87112.0,0.02294538]
[1766170190204,0.31477,87124.0,87113.0,0.00576]
[1766170190420,0.01147749,87127.0,87113.0,0.00576]
[1766170190620,0.01147736,87128.0,87113.0,0.31819]
[1766170190868,0.01147749,87127.0,87113.0,0.31819]
[1766170191072,0.05738749,87127.0,87113.0,0.31819]
[1766170191278,0.01147763,87126.0,87113.0,0.31819]
[1766170191806,0.06886529,87127.0,87113.0,0.31819]
[1766170192013,0.01147802,87123.0,87110.0,0.08301]
[1766170192210,0.30652,87118.0,87111.0,0.05172]
[1766170192412,0.30652,87118.0,87111.0,0.05179877]
[1766170192413,0.31799868,87118.0,87111.0,0.05179877]
[1766170192948,0.31799868,87118.0,87112.0,0.00576]
[1766170192949,0.37539328,87118.0,87112.0,0.00576]
[1766170193162,0.31799868,87118.0,87112.0,0.00576]
[1766170193316,0.01147881,87117.0,87113.0,0.00576]
[1766170193530,0.01147881,87117.0,87114.0,0.00576]
[1766170193736,0.01147881,87117.0,87104.0,0.06119966]
[1766170193737,0.01147921,87114.0,87104.0,0.06119966]
[1766170193937,0.31477,87113.0,87105.0,0.00576]
[1766170194169,0.31477,87108.0,87091.0,0.02148224]
[1766170194495,0.01147934,87113.0,87092.0,0.01576]
[1766170194496,0.31477,87101.0,87092.0,0.01576]
[1766170194697,0.30652,87100.0,87092.0,0.01576]
[1766170195858,0.305421,87100.0,87097.0,0.02294538]
[1766170196082,0.305421,87100.0,87098.0,0.00576]
[1766170196263,0.32625026,87106.0,87098.0,0.00576]
[1766170196445,0.01148039,87105.0,87098.0,0.00576]
[1766170196648,0.32625026,87106.0,87098.0,0.00576]
[1766170196860,0.01148039,87105.0,87098.0,0.00576]
[1766170197283,0.31477,87106.0,87098.0,0.00576]
[1766170197497,0.32625026,87106.0,87098.0,0.00576]
[1766170197706,0.00576,87113.0,87088.0,0.01]
[1766170197707,0.31477,87097.0,87088.0,0.01]
[1766170197998,0.37540953,87096.0,87089.0,0.00576]
[1766170198437,0.31800158,87096.0,87089.0,0.00576]
[1766170199768,0.30652,87096.0,87089.0,0.00576]
[1766170199957,0.31477,87103.0,87089.0,0.00576]
[1766170200156,0.32625066,87103.0,87097.0,0.02294538]
[1766170200499,0.30652,87101.0,87097.0,0.02294538]
[1766170201556,0.30482026,87109.0,87097.0,0.33537538]
[1766170201780,0.02294538,87129.0,87097.0,0.33537538]
[1766170201781,0.01147749,87127.0,87108.0,0.05739982]
[1766170201997,0.04596,87137.0,87117.0,0.31243]
[1766170201998,0.05738379,87133.0,87117.0,0.31243]
[1766170202268,0.01147644,87135.0,87118.0,0.31819]
[1766170202522,0.32624618,87137.0,87119.0,0.31243]
[1766170202735,0.3262467,87133.0,87118.0,0.00576]
[1766170203156,0.31487846,87133.0,87119.0,0.01147855]
[1766170203372,0.00010846,87133.0,87127.0,0.08033275]
[1766170203585,0.00010846,87133.0,87128.0,0.00576]
[1766170206535,0.00010846,87133.0,87115.0,0.01147907]
[1766170206536,0.48343,87131.0,87129.0,0.00576]
[1766170206737,0.48343,87131.0,87113.0,0.33892538]
[1766170206738,0.49490697,87131.0,87128.0,0.00576]